[Event "Prague Open 2024"]
[Site "Prague"]
[Date "2024.01.08"]
[Round "5.11"]
[White "Samborski, Henryk"]
[Black "Berin, Artem"]
[Result "0-1"]
[ECO "E08"]
[WhiteElo "2079"]
[BlackElo "2327"]
[Annotator "TA"]
[PlyCount "76"]
[EventDate "2024.01.02"]
[EventType "swiss"]
[EventCountry "CZE"]
[SourceTitle "playchess.com"]
[Source "ChessBase"]
[SourceQuality "1"]
[TimeControl "40/5400+30:1800+30"]

{[%evp 12,76,17,12,21,21,31,20,14,0,0,-39,-37,-41,-29,-69,-52,-50,-47,-42,-49,-41,-30,-54,0,0,-7,-50,-7,-75,-82,-108,-104,-157,-140,-158,-144,-133,-143,-157,-106,-113,-111,-96,-76,-115,-49,-38,-63,-79,-81,-98,-93,-137,-149,-528,-521,-558,-568,-447,-459,-630,-631,-2765,-2655,-29992,-1514]} 1. d4 {[%emt 0:00:06]} Nf6 {[%emt 0:00:10]} 2. Nf3 {[%emt 0:00:12]} d5 {[%emt 0:00:40]} 3. g3 {[%emt 0:00:35]} e6 {[%emt 0:00:07]} 4. Bg2 {[%emt 0:00:08]} Be7 {[%emt 0:00:05]} 5. O-O {[%emt 0:00:08]} O-O {[%emt 0:00:04]} 6. c4 {[%emt 0:01:17]} Nbd7 {[%emt 0:00:07]} 7. Qc2 {[%emt 0:01:27]} a5 {[%emt 0:00:26] E08: Closed Catalan: Main Line: 7 Qc2.} 8. Rd1 {[%emt 0:06:54]} h6 {[%emt 0:00:53]} 9. Nbd2 {[%emt 0:06:29]} c5 {[%emt 0:00:14] [#] The position is equal.} 10. e4 $146 {[%emt 0:05:58]} ({Predecessor:} 10. cxd5 Nxd5 11. Ne4 b6 12. dxc5 Nxc5 13. Nxc5 Bxc5 14. Bd2 Bb7 15. Bc3 Rc8 16. Qb3 Qe8 17. Bd4 a4 18. Qd3 Nb4 19. Qd2 Rd8 20. Qc3 Nd5 21. Qc2 Nb4 22. Qc3 {½-½ Pubantz,J (2309)-Petrovskiy,V (2413) GER-chT Lands U20 2023 (6)}) 10... cxd4 {[%emt 0:01:14]} 11. e5 {[%emt 0:09:45]} Ng4 {[%emt 0:02:38]} 12. cxd5 {[%emt 0:01:55]} exd5 {[%emt 0:03:15]} 13. Nb3 {[%emt 0:09:02] Prevents Bc5.} Ngxe5 {[%emt 0:02:48]} 14. Nbxd4 {[%emt 0:09:56]} Nxf3+ {[%emt 0:03:01]} 15. Nxf3 {[%emt 0:00:18]} Nf6 {[%emt 0:01:11]} 16. Be3 {[%emt 0:03:41]} Bg4 {[%emt 0:05:44]} 17. h3 {[%emt 0:07:58]} Bh5 {[%emt 0:01:25]} (17... Rc8 $15 18. Qb3 Be6 19. Qxb7 Rb8) 18. Qb3 $11 {[%emt 0:02:12][%cal Og3g4]} Qd6 {[%emt 0:13:25]} 19. Rd4 {[%emt 0:03:54]} Rfd8 {[%emt 0:05:51]} 20. Bf4 {[%emt 0:01:21]} (20. Nh4 $11 {keeps the balance.}) 20... Qa6 $1 $17 {[%emt 0:00:29]} 21. g4 {[%emt 0:05:06]} Bg6 {[%emt 0:01:32]} 22. Ne5 {[%emt 0:04:28]} (22. Rc1 $142) 22... a4 {[%emt 0:03:45][%cal Ba5a4,Ba4a3][%mdl 32]} 23. Qd1 {[%emt 0:04:22] [#]} Be4 {[%emt 0:00:23]} 24. Rc1 {[%emt 0:00:38]} a3 {[%emt 0:02:58]} 25. b4 {[%emt 0:01:52]} Bxg2 {[%emt 0:03:32]} (25... Rac8 $142 26. Bxe4 Rxc1 27. Bh7+ Kxh7 28. Bxc1 Rc8) 26. Kxg2 {[%emt 0:00:04]} Rac8 {[%emt 0:01:50]} 27. Qb3 {[%emt 0:02:56]} Qe2 {[%emt 0:05:09] Strongly threatening ...Rxc1.} 28. Qxa3 {[%emt 0:09:34]} Ra8 {[%emt 0:00:41]} (28... Rxc1 $17 29. Qxc1 Ne4) 29. Qd3 $15 {[%emt 0:01:10]} Rxa2 {[%emt 0:01:05]} 30. Qxe2 {[%emt 0:00:06]} Rxe2 {[%emt 0:00:04]} 31. Nd3 {[%emt 0:00:58] [#]} Ne4 $1 {[%emt 0:02:12] aiming for ...Bf6.} 32. Kf1 {[%emt 0:01:18]} Ra2 {[%emt 0:00:11] Black is more active.} 33. Rc7 $2 {[%emt 0:00:30][%mdl 8192] White does not recover from this.} (33. Bc7 $17 Rd7 34. Ne5) 33... Bf6 $19 {[%emt 0:01:29]} 34. Be5 {[%emt 0:00:03]} Bxe5 {[%emt 0:00:08][%mdl 64] Deflection} 35. Nxe5 {[%emt 0:00:10]} Rxf2+ {[%emt 0:00:07]} 36. Ke1 {[%emt 0:00:09]} Rh2 {[%emt 0:02:13] ...Ra8 would be deadly.} 37. Rxf7 {[%emt 0:01:29]} Ra8 {[%emt 0:00:10] ( -> ...Ra1+)} 38. Rf1 {[%emt 0:00:46]} Ng3 {[%emt 0:00:44] Weighted Error Value: White=0.69/Black=0.11 (very precise)} (38... Ra1+ $142 39. Rd1 Raa2 40. Rd3 Nc3 41. Rf8+ {[%mdl 64] Decoy} Kxf8 42. Rf3+ Kg8 43. Rf8+ {[%mdl 64] Decoy} Kxf8 44. Nd7+ Ke7 45. Kf1 Rh1#) 0-1

[Event "Prague Open 2024"]
[Site "Prague"]
[Date "2024.01.08"]
[Round "5.12"]
[White "Keller, Peter"]
[Black "Krivanek, Vladimir"]
[Result "1-0"]
[ECO "B06"]
[WhiteElo "2289"]
[BlackElo "2091"]
[Annotator "RC"]
[PlyCount "87"]
[EventDate "2024.01.02"]
[EventType "swiss"]
[EventCountry "CZE"]
[SourceTitle "playchess.com"]
[Source "ChessBase"]
[SourceQuality "1"]
[TimeControl "40/5400+30:1800+30"]

1. e4 {[%emt 0:07:55]} g6 {[%emt 0:06:11]} 2. d4 {[%emt 0:00:08]} Bg7 {[%emt 0:00:08]} 3. Nc3 {[%emt 0:00:06]} a6 {[%emt 0:00:26]} 4. Be3 {[%emt 0:00:18]} b5 {[%emt 0:00:37]} 5. Qd2 {[%emt 0:02:22]} Bb7 {[%emt 0:06:41]} 6. f3 {[%emt 0:00:31]} d6 {[%emt 0:01:00]} 7. h4 {[%emt 0:00:07]} h6 {[%emt 0:01:36]} 8. O-O-O {[%emt 0:00:19]} Nd7 {[%emt 0:00:55]} 9. Nh3 {[%emt 0:02:59]} c5 {[%emt 0:07:52]} 10. dxc5 {[%emt 0:02:13]} Nxc5 {[%emt 0:04:25]} 11. Bd4 {[%emt 0:00:10]} e5 {[%emt 0:06:19]} 12. Be3 {[%emt 0:04:02]} Bf8 {[%emt 0:05:09]} 13. Nxb5 {[%emt 0:04:02]} Nxe4 {[%emt 0:10:12]} 14. fxe4 {[%emt 0:00:51]} axb5 {[%emt 0:00:27]} 15. Bxb5+ {[%emt 0:00:37]} Ke7 {[%emt 0:00:09]} 16. Qb4 {[%emt 0:12:55]} Rc8 {[%emt 0:03:57]} 17. Rd2 {[%emt 0:09:05]} Nf6 {[%emt 0:02:11]} 18. Nf2 {[%emt 0:00:06]} Qc7 {[%emt 0:05:14]} 19. Rhd1 {[%emt 0:02:30]} Ne8 {[%emt 0:01:08]} 20. g4 {[%emt 0:02:33]} Kf6 {[%emt 0:04:39]} 21. Qb3 {[%emt 0:07:44]} Kg7 {[%emt 0:03:27]} 22. g5 {[%emt 0:02:48]} hxg5 {[%emt 0:00:43]} 23. hxg5 {[%emt 0:00:04]} Rh4 {[%emt 0:01:05]} 24. Rf1 {[%emt 0:00:57]} Kg8 {[%emt 0:02:50]} 25. a4 {[%emt 0:03:00]} Ng7 {[%emt 0:01:29]} 26. Rd3 {[%emt 0:00:47]} Ne6 {[%emt 0:01:44]} 27. Rc3 {[%emt 0:00:08]} Qd8 {[%emt 0:01:11]} 28. Rxc8 {[%emt 0:08:30]} Bxc8 {[%emt 0:00:41]} 29. Bc4 {[%emt 0:00:19]} Be7 {[%emt 0:02:16]} 30. Bb6 {[%emt 0:02:10]} Bxg5+ {[%emt 0:03:09]} 31. Kb1 {[%emt 0:00:03]} Qe8 {[%emt 0:01:48]} 32. a5 {[%emt 0:01:05]} Bd8 {[%emt 0:05:47]} 33. a6 {[%emt 0:00:32]} d5 {[%emt 0:04:12]} 34. exd5 {[%emt 0:03:50]} Bxb6 {[%emt 0:01:45]} 35. dxe6 {[%emt 0:00:15]} Bxe6 {[%emt 0:01:11]} 36. Qxb6 {[%emt 0:01:06]} Rxc4 {[%emt 0:02:00]} 37. Rd1 {[%emt 0:00:58]} Kg7 {[%emt 0:00:48]} 38. a7 {[%emt 0:08:09]} Qa4 {[%emt 0:01:49]} 39. b3 {[%emt 0:00:33]} Rb4 {[%emt 0:02:12]} 40. Qxb4 {[%emt 0:01:26]} Qxb4 {[%emt 0:00:21]} 41. a8=Q {[%emt 0:30:05]} Bxb3 {[%emt 0:30:34]} 42. Nd3 {[%emt 0:00:24]} Qb5 {[%emt 0:00:00]} 43. cxb3 {[%emt 0:00:00]} Qxb3+ {[%emt 0:00:00]} 44. Nb2 {[%emt 0:00:00]} 1-0

[Event "Prague Open 2024"]
[Site "Prague"]
[Date "2024.01.08"]
[Round "5.13"]
[White "Svobodova, Michaela"]
[Black "Vojta, Jakub"]
[Result "0-1"]
[ECO "B13"]
[WhiteElo "1979"]
[BlackElo "2261"]
[Annotator "RC"]
[PlyCount "88"]
[EventDate "2024.01.02"]
[EventType "swiss"]
[EventCountry "CZE"]
[SourceTitle "playchess.com"]
[Source "ChessBase"]
[SourceQuality "1"]
[TimeControl "40/5400+30:1800+30"]

1. e4 {[%emt 0:00:10]} c6 {[%emt 0:00:11]} 2. d4 {[%emt 0:01:03]} d5 {[%emt 0:00:07]} 3. exd5 {[%emt 0:00:34]} cxd5 {[%emt 0:00:06]} 4. Bd3 {[%emt 0:00:52]} Nc6 {[%emt 0:00:06]} 5. c3 {[%emt 0:00:26]} Nf6 {[%emt 0:00:05]} 6. h3 {[%emt 0:00:38]} e5 {[%emt 0:03:06]} 7. dxe5 {[%emt 0:00:50]} Nxe5 {[%emt 0:00:06]} 8. Nf3 {[%emt 0:00:34]} Nxd3+ {[%emt 0:01:31]} 9. Qxd3 {[%emt 0:00:07]} Bd6 {[%emt 0:14:44]} 10. O-O {[%emt 0:01:05]} O-O {[%emt 0:00:07]} 11. Bg5 {[%emt 0:00:41]} h6 {[%emt 0:01:15]} 12. Bh4 {[%emt 0:00:29]} g5 {[%emt 0:02:47]} 13. Bg3 {[%emt 0:00:19]} Bxg3 {[%emt 0:00:05]} 14. fxg3 {[%emt 0:00:08]} Ne4 {[%emt 0:00:20]} 15. Nd4 {[%emt 0:03:40]} Qd6 {[%emt 0:03:33]} 16. g4 {[%emt 0:08:53]} Qb6 {[%emt 0:08:42]} 17. Nd2 {[%emt 0:12:29]} f5 {[%emt 0:04:24]} 18. Nxe4 {[%emt 0:06:51]} dxe4 {[%emt 0:00:40]} 19. Qc4+ {[%emt 0:08:19]} Kg7 {[%emt 0:05:07]} 20. Rae1 {[%emt 0:05:38]} Rf6 {[%emt 0:02:19]} 21. Kh1 {[%emt 0:04:47]} Be6 {[%emt 0:01:14]} 22. Nxe6+ {[%emt 0:03:04]} Qxe6 {[%emt 0:00:04]} 23. Qxe6 {[%emt 0:02:39]} Rxe6 {[%emt 0:00:03]} 24. gxf5 {[%emt 0:01:21]} Ree8 {[%emt 0:00:17]} 25. g4 {[%emt 0:06:14]} Rad8 {[%emt 0:01:10]} 26. Re2 {[%emt 0:11:32]} e3 {[%emt 0:03:24]} 27. Kg2 {[%emt 0:04:40]} Re4 {[%emt 0:00:11]} 28. Rfe1 {[%emt 0:04:37]} Rd3 {[%emt 0:01:13]} 29. Kf3 {[%emt 0:03:41]} Rf4+ {[%emt 0:00:06]} 30. Kg3 {[%emt 0:00:08]} Re4 {[%emt 0:00:04]} 31. Rc2 {[%emt 0:04:53]} Kf6 {[%emt 0:02:22]} 32. Kf3 {[%emt 0:01:43]} Ke5 {[%emt 0:00:04]} 33. Ke2 {[%emt 0:00:44]} Rd8 {[%emt 0:00:34]} 34. Rd1 {[%emt 0:00:42]} Rxd1 {[%emt 0:00:30]} 35. Kxd1 {[%emt 0:00:02]} Rf4 {[%emt 0:00:34]} 36. c4 {[%emt 0:02:08]} Ke4 {[%emt 0:03:29]} 37. Rc3 {[%emt 0:00:32]} Rf1+ {[%emt 0:01:17]} 38. Ke2 {[%emt 0:00:26]} Rf2+ {[%emt 0:00:04]} 39. Ke1 {[%emt 0:00:20]} Rxb2 {[%emt 0:00:27]} 40. Rb3 {[%emt 0:00:49]} Rxa2 {[%emt 0:00:26]} 41. Rxb7 {[%emt 0:30:34]} Kf3 {[%emt 0:30:15]} 42. Rb1 {[%emt 0:00:00]} Rh2 {[%emt 0:00:00]} 43. Kd1 {[%emt 0:00:00]} Rh1+ {[%emt 0:00:00]} 44. Kc2 {[%emt 0:00:00]} Rxb1 {[%emt 0:00:00]} 0-1

[Event "Prague Open 2024"]
[Site "Prague"]
[Date "2024.01.08"]
[Round "5.15"]
[White "Brnusak, Tomas"]
[Black "Bezdek, Tomas"]
[Result "1-0"]
[ECO "C17"]
[WhiteElo "2229"]
[BlackElo "2022"]
[Annotator "RC"]
[PlyCount "82"]
[EventDate "2024.01.02"]
[EventType "swiss"]
[EventCountry "CZE"]
[SourceTitle "playchess.com"]
[Source "ChessBase"]
[SourceQuality "1"]
[TimeControl "40/5400+30:1800+30"]

1. e4 {[%emt 0:00:03]} e6 {[%emt 0:00:08]} 2. d4 {[%emt 0:00:10]} d5 {[%emt 0:00:06]} 3. Nc3 {[%emt 0:00:05]} Bb4 {[%emt 0:00:08]} 4. e5 {[%emt 0:00:06]} c5 {[%emt 0:00:05]} 5. Bd2 {[%emt 0:00:05]} Ne7 {[%emt 0:01:28]} 6. a3 {[%emt 0:00:31]} Bxc3 {[%emt 0:00:53]} 7. Bxc3 {[%emt 0:00:06]} b6 {[%emt 0:00:04]} 8. h4 {[%emt 0:00:39]} Ba6 {[%emt 0:01:47]} 9. Bxa6 {[%emt 0:00:32]} Nxa6 {[%emt 0:00:08]} 10. Qe2 {[%emt 0:03:52]} Nb8 {[%emt 0:05:20]} 11. Nf3 {[%emt 0:04:07]} Qc7 {[%emt 0:04:36]} 12. h5 {[%emt 0:03:38]} h6 {[%emt 0:01:12]} 13. a4 {[%emt 0:06:31]} Nd7 {[%emt 0:08:47]} 14. O-O {[%emt 0:19:14]} Rc8 {[%emt 0:03:59]} 15. a5 {[%emt 0:04:00]} O-O {[%emt 0:02:55]} 16. Rfe1 {[%emt 0:04:10]} Nc6 {[%emt 0:07:51]} 17. g4 {[%emt 0:09:24]} cxd4 {[%emt 0:19:31]} 18. Bxd4 {[%emt 0:02:05]} Nxa5 {[%emt 0:01:55]} 19. c3 {[%emt 0:00:37]} Nb3 {[%emt 0:05:45]} 20. Rad1 {[%emt 0:01:35]} Ndc5 {[%emt 0:02:33]} 21. Kh1 {[%emt 0:02:49]} Ne4 {[%emt 0:01:43]} 22. Be3 {[%emt 0:03:54]} Qc4 {[%emt 0:02:04]} 23. Qc2 {[%emt 0:01:14]} f5 {[%emt 0:05:51]} 24. exf6 {[%emt 0:03:41]} Rxf6 {[%emt 0:01:54]} 25. Ne5 {[%emt 0:00:54]} Qc7 {[%emt 0:02:30]} 26. Ng6 {[%emt 0:00:09]} Nbc5 {[%emt 0:03:53]} 27. Bd4 {[%emt 0:00:24]} Rxg6 {[%emt 0:06:20]} 28. hxg6 {[%emt 0:00:05]} Qf4 {[%emt 0:01:31]} 29. f3 {[%emt 0:03:00]} Qxf3+ {[%emt 0:01:46]} 30. Qg2 {[%emt 0:00:07]} Rf8 {[%emt 0:02:12]} 31. Qxf3 {[%emt 0:11:17]} Rxf3 {[%emt 0:00:05]} 32. Kh2 {[%emt 0:00:10]} Rf4 {[%emt 0:00:38]} 33. Rg1 {[%emt 0:00:47]} Nf6 {[%emt 0:03:05]} 34. Rdf1 {[%emt 0:01:56]} Rxf1 {[%emt 0:02:27]} 35. Rxf1 {[%emt 0:00:06]} Nxg4+ {[%emt 0:00:06]} 36. Kg3 {[%emt 0:00:12]} Nf6 {[%emt 0:00:16]} 37. Bxc5 {[%emt 0:00:13]} bxc5 {[%emt 0:01:20]} 38. Ra1 {[%emt 0:00:07]} Kf8 {[%emt 0:01:42]} 39. Rxa7 {[%emt 0:00:06]} Ne4+ {[%emt 0:00:26]} 40. Kf4 {[%emt 0:00:39]} Ng5 {[%emt 0:00:29]} 41. Ke5 {[%emt 0:30:43]} c4 {[%emt 0:30:53]} 1-0

[Event "Prague Open 2024"]
[Site "Prague"]
[Date "2024.01.08"]
[Round "5.16"]
[White "Garsky, Vladyslav"]
[Black "Kirtadze, Anastasia"]
[Result "0-1"]
[ECO "B44"]
[WhiteElo "2186"]
[BlackElo "1981"]
[Annotator "RC"]
[PlyCount "116"]
[EventDate "2024.01.02"]
[EventType "swiss"]
[EventCountry "CZE"]
[SourceTitle "playchess.com"]
[Source "ChessBase"]
[SourceQuality "1"]
[TimeControl "40/5400+30:1800+30"]

1. e4 {[%emt 0:00:05]} c5 {[%emt 0:00:04]} 2. Nf3 {[%emt 0:00:40]} e6 {[%emt 0:00:04]} 3. d4 {[%emt 0:00:12]} cxd4 {[%emt 0:00:03]} 4. Nxd4 {[%emt 0:00:04]} Nc6 {[%emt 0:00:03]} 5. Bf4 {[%emt 0:01:02]} d6 {[%emt 0:05:41]} 6. Nxc6 {[%emt 0:01:33]} bxc6 {[%emt 0:00:14]} 7. Bd3 {[%emt 0:00:03]} Nf6 {[%emt 0:02:11]} 8. O-O {[%emt 0:04:03]} Be7 {[%emt 0:00:39]} 9. c4 {[%emt 0:03:28]} e5 {[%emt 0:03:57]} 10. Be3 {[%emt 0:02:12]} O-O {[%emt 0:07:56]} 11. Nc3 {[%emt 0:00:29]} Be6 {[%emt 0:04:53]} 12. Qe2 {[%emt 0:00:16]} Qc7 {[%emt 0:01:27]} 13. Rfd1 {[%emt 0:01:07]} Rad8 {[%emt 0:05:11]} 14. Rac1 {[%emt 0:01:23]} Qb7 {[%emt 0:05:28]} 15. b3 {[%emt 0:00:54]} h6 {[%emt 0:02:34]} 16. h3 {[%emt 0:00:46]} Nd7 {[%emt 0:07:40]} 17. Qf3 {[%emt 0:05:49]} Nc5 {[%emt 0:02:47]} 18. Bf1 {[%emt 0:00:10]} Bg5 {[%emt 0:02:54]} 19. g3 {[%emt 0:06:52]} f5 {[%emt 0:09:31]} 20. Bxg5 {[%emt 0:02:22]} hxg5 {[%emt 0:00:50]} 21. exf5 {[%emt 0:01:07]} Bxf5 {[%emt 0:01:04]} 22. Qe3 {[%emt 0:01:21]} g4 {[%emt 0:02:14]} 23. h4 {[%emt 0:01:30]} Ne6 {[%emt 0:07:00]} 24. Bg2 {[%emt 0:01:20]} Qc7 {[%emt 0:02:52]} 25. b4 {[%emt 0:05:25]} Nd4 {[%emt 0:02:43]} 26. b5 {[%emt 0:04:13]} c5 {[%emt 0:02:48]} 27. Bd5+ {[%emt 0:02:11]} Kh8 {[%emt 0:02:13]} 28. Ne4 {[%emt 0:05:14]} Bxe4 {[%emt 0:02:04]} 29. Bxe4 {[%emt 0:03:22]} Rf6 {[%emt 0:01:24]} 30. Rd2 {[%emt 0:03:59]} Rdf8 {[%emt 0:02:25]} 31. Qg5 {[%emt 0:01:52]} Qd7 {[%emt 0:01:53]} 32. Rc3 {[%emt 0:02:08]} Qf7 {[%emt 0:03:25]} 33. Bd5 {[%emt 0:01:26]} Qd7 {[%emt 0:00:13]} 34. a4 {[%emt 0:00:33]} Nf3+ {[%emt 0:05:54]} 35. Bxf3 {[%emt 0:01:15]} gxf3 {[%emt 0:00:01]} 36. Kh2 {[%emt 0:00:39]} Qe6 {[%emt 0:02:03]} 37. a5 {[%emt 0:02:38]} Rg6 {[%emt 0:00:10]} 38. Qe3 {[%emt 0:00:35]} Qg4 {[%emt 0:01:19]} 39. Qe1 {[%emt 0:01:20]} Rf4 {[%emt 0:01:25]} 40. Qh1 {[%emt 0:01:02]} Qh5 {[%emt 0:00:42]} 41. Kg1 {[%emt 0:31:09]} Qf5 {[%emt 0:19:30]} 42. Rdd3 {[%emt 0:00:00]} e4 {[%emt 0:00:31]} 43. Rd5 {[%emt 0:00:00]} Qf6 {[%emt 0:00:30]} 44. Rc1 {[%emt 0:00:00]} Qb2 {[%emt 0:05:18]} 45. Rf1 {[%emt 0:00:00]} e3 {[%emt 0:05:58]} 46. Rg5 {[%emt 0:00:00]} e2 {[%emt 0:00:40]} 47. Re1 {[%emt 0:00:00]} Qc3 {[%emt 0:02:35]} 48. Kh2 {[%emt 0:00:00]} Rh6 {[%emt 0:00:45]} 49. Kh3 {[%emt 0:00:00]} Rd4 {[%emt 0:00:38]} 50. Rf5 {[%emt 0:00:00]} Qxe1 {[%emt 0:00:28]} 51. Qxe1 {[%emt 0:00:00]} Rd1 {[%emt 0:00:03]} 52. Rf8+ {[%emt 0:00:00]} Kh7 {[%emt 0:00:03]} 53. Qc3 {[%emt 0:00:00]} e1=Q {[%emt 0:00:21]} 54. Qc2+ {[%emt 0:00:00]} Rg6 {[%emt 0:00:26]} 55. Rh8+ {[%emt 0:00:00]} Kxh8 {[%emt 0:00:03]} 56. Qxg6 {[%emt 0:00:00]} Qf1+ {[%emt 0:01:22]} 57. Kg4 {[%emt 0:00:00]} Qxc4+ {[%emt 0:00:07]} 58. Kxf3 {[%emt 0:00:00]} Qd3+ {[%emt 0:00:52]} 0-1

[Event "Prague Open 2024"]
[Site "Prague"]
[Date "2024.01.08"]
[Round "5.17"]
[White "Zielonka, Adam"]
[Black "Matras, Ondrej"]
[Result "1/2-1/2"]
[ECO "C02"]
[WhiteElo "1966"]
[BlackElo "2185"]
[Annotator "ChessBase"]
[PlyCount "134"]
[EventDate "2024.01.02"]
[EventType "swiss"]
[EventCountry "CZE"]
[SourceTitle "playchess.com"]
[Source "ChessBase"]
[SourceQuality "1"]
[TimeControl "40/5400+30:1800+30"]

1. e4 {[%emt 0:00:02]} e6 {[%emt 0:00:01]} 2. d4 {[%emt 0:00:10]} d5 {[%emt 0:00:02]} 3. e5 {[%emt 0:00:32]} c5 {[%emt 0:00:02]} 4. c3 {[%emt 0:00:06]} Nc6 {[%emt 0:00:53]} 5. Nf3 {[%emt 0:00:09]} Bd7 {[%emt 0:03:06]} 6. Be2 {[%emt 0:01:00]} Nge7 {[%emt 0:01:37]} 7. O-O {[%emt 0:00:09]} Nf5 {[%emt 0:01:59]} 8. dxc5 {[%emt 0:00:40]} Bxc5 {[%emt 0:00:12]} 9. Bd3 {[%emt 0:00:38]} Nh4 {[%emt 0:06:37]} 10. Nbd2 {[%emt 0:00:28]} Ng6 {[%emt 0:04:10]} 11. Nb3 {[%emt 0:04:17]} Bb6 {[%emt 0:02:14]} 12. Re1 {[%emt 0:04:55]} Qb8 {[%emt 0:09:57]} 13. Qe2 {[%emt 0:07:31]} Bc7 {[%emt 0:01:36]} 14. Bxg6 {[%emt 0:01:56]} hxg6 {[%emt 0:01:02]} 15. Nc5 {[%emt 0:06:43]} Qc8 {[%emt 0:08:01]} 16. Bf4 {[%emt 0:12:19]} a6 {[%emt 0:07:51]} 17. c4 {[%emt 0:08:17]} Ne7 {[%emt 0:04:13]} 18. Nxd7 {[%emt 0:11:03]} Qxd7 {[%emt 0:00:06]} 19. Red1 {[%emt 0:00:38]} Bb6 {[%emt 0:03:35]} 20. Bg5 {[%emt 0:04:30]} Rc8 {[%emt 0:04:12]} 21. Bxe7 {[%emt 0:04:59]} Kxe7 {[%emt 0:00:47]} 22. cxd5 {[%emt 0:01:11]} exd5 {[%emt 0:00:02]} 23. Qd2 {[%emt 0:00:49]} Rc5 {[%emt 0:06:15]} 24. Rac1 {[%emt 0:09:24]} Rxc1 {[%emt 0:05:33]} 25. Qxc1 {[%emt 0:01:55]} Rc8 {[%emt 0:10:18]} 26. Qg5+ {[%emt 0:06:50]} Kf8 {[%emt 0:00:14]} 27. Qh4 {[%emt 0:06:13]} Kg8 {[%emt 0:04:06]} 28. Ng5 {[%emt 0:02:40]} Qf5 {[%emt 0:00:24]} 29. e6 {[%emt 0:01:46]} Bxf2+ {[%emt 0:10:47]} 30. Qxf2 {[%emt 0:00:02]} Qxg5 {[%emt 0:00:37]} 31. Qxf7+ {[%emt 0:03:14]} Kh7 {[%emt 0:00:01]} 32. e7 {[%emt 0:00:45]} Rc2 {[%emt 0:02:21]} 33. Qxd5 {[%emt 0:00:34]} Qe3+ {[%emt 0:00:38]} 34. Kh1 {[%emt 0:00:07]} Qxe7 {[%emt 0:00:02]} 35. Qb3 {[%emt 0:00:49]} Qe2 {[%emt 0:02:56]} 36. Qh3+ {[%emt 0:00:16]} Qh5 {[%emt 0:00:35]} 37. Qxh5+ {[%emt 0:00:25]} gxh5 {[%emt 0:00:02]} 38. Rb1 {[%emt 0:00:36]} Kg6 {[%emt 0:01:22]} 39. a4 {[%emt 0:00:33]} Kf5 {[%emt 0:00:37]} 40. b4 {[%emt 0:00:36]} Ke4 {[%emt 0:00:31]} 41. h3 {[%emt 0:30:35]} Kd5 {[%emt 0:10:58]} 42. Rd1+ {[%emt 0:00:00]} Kc6 {[%emt 0:00:01]} 43. b5+ {[%emt 0:00:00]} axb5 44. axb5+ {[%emt 0:00:00]} Kxb5 {[%emt 0:01:25]} 45. Rd7 {[%emt 0:00:00]} b6 {[%emt 0:03:24]} 46. Rxg7 {[%emt 0:00:00]} Rc5 {[%emt 0:00:15]} 47. g4 {[%emt 0:00:00]} Kc4 {[%emt 0:01:55]} 48. g5 {[%emt 0:01:35]} b5 {[%emt 0:00:17]} 49. g6 {[%emt 0:01:01]} b4 {[%emt 0:00:22]} 50. Rb7 {[%emt 0:00:49]} Rg5 {[%emt 0:01:06]} 51. g7 {[%emt 0:00:06]} h4 {[%emt 0:02:34]} 52. Kh2 {[%emt 0:00:54]} b3 {[%emt 0:00:21]} 53. Rc7+ {[%emt 0:00:36]} Kd3 {[%emt 0:00:10]} 54. Rb7 {[%emt 0:00:14]} Kc2 {[%emt 0:00:18]} 55. Rc7+ {[%emt 0:00:29]} Kb2 {[%emt 0:02:25]} 56. Rb7 {[%emt 0:00:09]} Rg3 {[%emt 0:00:13]} 57. Rc7 {[%emt 0:00:23]} Ka2 {[%emt 0:00:31]} 58. Ra7+ {[%emt 0:00:02]} Kb1 {[%emt 0:00:23]} 59. Rb7 {[%emt 0:00:07]} b2 {[%emt 0:00:28]} 60. Rc7 {[%emt 0:00:14]} Ka2 {[%emt 0:00:27]} 61. Ra7+ {[%emt 0:00:08]} Kb3 {[%emt 0:00:24]} 62. Rb7+ {[%emt 0:00:02]} Kc2 {[%emt 0:00:26]} 63. Rc7+ {[%emt 0:00:05]} Kd2 {[%emt 0:07:40]} 64. Rb7 {[%emt 0:00:23]} Kc1 {[%emt 0:00:36]} 65. Rc7+ {[%emt 0:00:03]} Kb1 {[%emt 0:00:03]} 66. Rb7 {[%emt 0:00:11]} Rg5 {[%emt 0:00:14]} 67. Rc7 {[%emt 0:00:17]} Rg3 1/2-1/2

[Event "Prague Open 2024"]
[Site "Prague"]
[Date "2024.01.08"]
[Round "5.18"]
[White "Vavruska, Antonin"]
[Black "Sindler, Michal"]
[Result "0-1"]
[ECO "B22"]
[WhiteElo "1878"]
[BlackElo "2158"]
[Annotator "RC"]
[PlyCount "64"]
[EventDate "2024.01.02"]
[EventType "swiss"]
[EventCountry "CZE"]
[SourceTitle "playchess.com"]
[Source "ChessBase"]
[SourceQuality "1"]
[TimeControl "40/5400+30:1800+30"]

1. e4 {[%emt 0:00:00]} c5 {[%emt 0:00:00]} 2. c3 {[%emt 0:00:00]} Nf6 {[%emt 0:00:00]} 3. e5 {[%emt 0:00:00]} Nd5 {[%emt 0:00:01]} 4. d4 {[%emt 0:00:04]} cxd4 {[%emt 0:00:08]} 5. Qxd4 {[%emt 0:00:46]} e6 {[%emt 0:00:22]} 6. Nf3 {[%emt 0:00:06]} Nc6 {[%emt 0:00:22]} 7. Qe4 {[%emt 0:00:16]} f5 {[%emt 0:00:45]} 8. Qa4 {[%emt 0:01:20]} Qc7 {[%emt 0:02:52]} 9. Bf4 {[%emt 0:14:02]} Nxf4 {[%emt 0:04:47]} 10. Qxf4 {[%emt 0:00:08]} Be7 {[%emt 0:02:10]} 11. h4 {[%emt 0:07:39]} Bf6 {[%emt 0:04:21]} 12. Qc4 {[%emt 0:23:35]} Bxe5 {[%emt 0:03:59]} 13. Nxe5 {[%emt 0:00:13]} Qxe5+ {[%emt 0:00:12]} 14. Be2 {[%emt 0:00:17]} b6 {[%emt 0:05:03]} 15. Nd2 {[%emt 0:01:00]} Na5 {[%emt 0:03:46]} 16. f4 {[%emt 0:02:24]} Nxc4 {[%emt 0:01:31]} 17. fxe5 {[%emt 0:00:09]} Nxe5 {[%emt 0:00:30]} 18. O-O-O {[%emt 0:00:22]} Bb7 {[%emt 0:00:59]} 19. Rhe1 {[%emt 0:00:42]} O-O-O {[%emt 0:05:20]} 20. g3 {[%emt 0:00:27]} Rhf8 {[%emt 0:01:18]} 21. Nb3 {[%emt 0:00:39]} f4 {[%emt 0:09:32]} 22. gxf4 {[%emt 0:02:22]} Rxf4 {[%emt 0:00:38]} 23. h5 {[%emt 0:02:05]} Nc6 {[%emt 0:05:03]} 24. Rg1 {[%emt 0:01:20]} Rf7 {[%emt 0:00:38]} 25. Bd3 {[%emt 0:00:12]} h6 {[%emt 0:00:23]} 26. Bg6 {[%emt 0:01:16]} Re7 {[%emt 0:00:17]} 27. Rg3 {[%emt 0:01:03]} d6 {[%emt 0:01:50]} 28. c4 {[%emt 0:02:05]} a6 {[%emt 0:02:37]} 29. a3 {[%emt 0:06:12]} Kc7 {[%emt 0:02:06]} 30. Be4 Na5 {[%emt 0:03:57]} 31. Nxa5 {[%emt 0:05:16]} Bxe4 {[%emt 0:01:01]} 32. Nb3 {[%emt 0:00:11]} e5 {[%emt 0:00:57]} 0-1